fUSD/lending_fUSD_20260617
["ID","MTS","AMOUNT","RATE_DAILY","PERIOD"]
[425294061,1781657432000,-151.0,0.00016036,2]
[425294057,1781657432000,-153.0,0.00015961,2]
[425294079,1781657432000,-150.0,0.00016036,2]
[425294060,1781657432000,-216.13448155,0.00015969,2]
[425294058,1781657432000,-152.0,0.00015961,2]
[425294056,1781657432000,-250.0,0.00015955,2]
[425294054,1781657432000,-219.36743558,0.00015861,2]
[425294074,1781657432000,-152.0,0.00016036,2]
[425294077,1781657432000,-151.0,0.00016036,2]
[425294059,1781657432000,-151.0,0.00015961,2]
[425294090,1781657432000,-500.0,0.00016052,2]
[425294081,1781657432000,-163.7,0.00016036,2]
[425294138,1781657432000,-627.55596656,0.00016438,2]
[425294136,1781657432000,-285.60498281,0.00016438,2]
[425294126,1781657432000,-1631.74547507,0.00016438,2]
[425294133,1781657432000,-305.59172414,0.00016438,2]
[425294131,1781657432000,-525.21588884,0.00016438,2]
[425294128,1781657432000,-1106.52958623,0.00016438,2]
[425294124,1781657432000,-552.62675535,0.00016437,2]
[425294112,1781657432000,-166.66,0.00016249,2]
[425294115,1781657432000,-172.55588835,0.00016338,2]
[425294110,1781657432000,-150.0,0.00016124,2]
[425294122,1781657432000,-492.38168404,0.00016437,2]
[425294119,1781657432000,-4474.24417822,0.00016437,2]
[425294108,1781657432000,-150.0,0.00016074,2]
[425294106,1781657432000,-150.0,0.00016057,2]
[425294084,1781657432000,-195.52550283,0.00016052,2]
[425294086,1781657432000,-500.0,0.00016052,2]
[425294092,1781657432000,-500.0,0.00016052,2]
[425294117,1781657432000,-1724.9183,0.00016338,2]
[425294094,1781657432000,-232.15382493,0.00016052,2]
[425294088,1781657432000,-500.0,0.00016052,2]
[425294082,1781657432000,-150.0,0.00016041,2]
[425294098,1781657432000,-500.0,0.00016056,2]
[425294100,1781657432000,-500.0,0.00016056,2]
[425294102,1781657432000,-500.0,0.00016056,2]
[425294104,1781657432000,-160.0,0.00016056,2]
[425294096,1781657432000,-500.0,0.00016056,2]
[425294212,1781657438000,-1631.74547507,0.00016438,2]
[425294186,1781657438000,-412.99280156,0.00016438,2]
[425294187,1781657438000,-1631.74547507,0.00016438,2]
[425294189,1781657438000,-1631.74547507,0.00016438,2]
[425294188,1781657438000,-1631.74547507,0.00016438,2]
[425294191,1781657438000,-712.98113156,0.00016438,2]
[425294217,1781657438000,-1631.74547507,0.00016438,2]
[425294215,1781657438000,-1631.74547507,0.00016438,2]
[425294205,1781657438000,-1631.74547507,0.00016438,2]
[425294208,1781657438000,-1631.74547507,0.00016438,2]
[425294219,1781657438000,-750.34746753,0.00016438,2]
[425294224,1781657438000,-202.62869007,0.00016438,2]
[425294222,1781657438000,-678.76931747,0.00016438,2]
[425294202,1781657438000,-918.76434351,0.00016438,2]
[425294226,1781657438000,-427.32229681,0.00016438,2]
[425294300,1781657440000,-1025.49280924,0.00016438,2]
[425294331,1781657443000,-1631.74547507,0.00016438,2]
[425294324,1781657443000,-1631.74547507,0.00016438,2]
[425294322,1781657443000,-1631.74547507,0.00016438,2]
[425294323,1781657443000,-1631.74547507,0.00016438,2]
[425294332,1781657443000,-1631.74547507,0.00016438,2]
[425294335,1781657443000,-1631.74547507,0.00016438,2]
[425294318,1781657443000,-1631.74547507,0.00016438,2]
[425294334,1781657443000,-1631.74547507,0.00016438,2]
[425294325,1781657443000,-1631.74547507,0.00016438,2]
[425294319,1781657443000,-1631.74547507,0.00016438,2]
[425294316,1781657443000,-1004.04821959,0.00016438,2]
[425294321,1781657443000,-1295.33045017,0.00016438,2]
[425294317,1781657443000,-81.88037482,0.00016438,2]
[425294314,1781657443000,-1631.74547507,0.00016438,2]
[425294311,1781657443000,-1631.74547507,0.00016438,2]
[425294313,1781657443000,-1631.74547507,0.00016438,2]
[425294312,1781657443000,-1631.74547507,0.00016438,2]
[425294315,1781657443000,-545.81688066,0.00016438,2]
[425294309,1781657443000,-1631.74547507,0.00016438,2]
[425294310,1781657443000,-1631.74547507,0.00016438,2]
[425294308,1781657443000,-178.93036902,0.00016438,2]
[425294320,1781657443000,-336.4150249,0.00016438,2]
[425294329,1781657443000,-1631.74547507,0.00016438,2]
[425294326,1781657443000,-1631.74547507,0.00016438,2]
[425294333,1781657443000,-1631.74547507,0.00016438,2]
[425294327,1781657443000,-1631.74547507,0.00016438,2]
[425294355,1781657443000,-1602.07737551,0.00016438,2]
[425294356,1781657443000,-1602.07737551,0.00016438,2]
[425294354,1781657443000,-1602.07737551,0.00016438,2]
[425294350,1781657443000,-1631.74547507,0.00016438,2]
[425294352,1781657443000,-1631.74547507,0.00016438,2]
[425294351,1781657443000,-1631.74547507,0.00016438,2]
[425294348,1781657443000,-1631.74547507,0.00016438,2]
[425294349,1781657443000,-1631.74547507,0.00016438,2]
[425294346,1781657443000,-1631.74547507,0.00016438,2]
[425294345,1781657443000,-1631.74547507,0.00016438,2]
[425294353,1781657443000,-1602.07737551,0.00016438,2]
[425294339,1781657443000,-1631.74547507,0.00016438,2]
[425294344,1781657443000,-1631.74547507,0.00016438,2]
[425294343,1781657443000,-1631.74547507,0.00016438,2]
[425294342,1781657443000,-1631.74547507,0.00016438,2]
[425294338,1781657443000,-1631.74547507,0.00016438,2]
[425294337,1781657443000,-1631.74547507,0.00016438,2]
[425294340,1781657443000,-1631.74547507,0.00016438,2]
[425294336,1781657443000,-1631.74547507,0.00016438,2]
[425294328,1781657443000,-1631.74547507,0.00016438,2]
[425294341,1781657443000,-1631.74547507,0.00016438,2]
[425294330,1781657443000,-1631.74547507,0.00016438,2]
[425294396,1781657444000,-500.0,0.00018932,2]
[425294395,1781657444000,-1500.0,0.00018623,2]
[425294390,1781657444000,-500.0,0.00017447,2]
[425294406,1781657444000,-150.99,0.00020951,2]
[425294385,1781657444000,-1602.07737553,0.00016438,2]
[425294391,1781657444000,-500.0,0.00017447,2]
[425294386,1781657444000,-160.0,0.00016482,2]
[425294389,1781657444000,-166.66,0.00017275,2]
[425294399,1781657444000,-153.0,0.0002,2]
[425294388,1781657444000,-166.66,0.00016933,2]
[425294402,1781657444000,-152.0,0.0002,2]
[425294408,1781657444000,-383.0,0.00021,2]
[425294398,1781657444000,-924.72130189,0.00019171,2]
[425294400,1781657444000,-383.0,0.0002,2]
[425294397,1781657444000,-172.55588832,0.00019076,2]
[425294394,1781657444000,-166.66,0.00017959,2]
[425294404,1781657444000,-784.0,0.0002,2]
[425294403,1781657444000,-518.0,0.0002,2]
[425294405,1781657444000,-172.0,0.0002,2]
[425294411,1781657444000,-518.0,0.00021,2]
[425294409,1781657444000,-563.0,0.00021,2]
[425294410,1781657444000,-156.0,0.00021,2]
[425294393,1781657444000,-166.66,0.00017617,2]
[425294407,1781657444000,-153.0,0.00021,2]
[425294401,1781657444000,-563.0,0.0002,2]
[425294383,1781657444000,-1602.07737553,0.00016438,2]
[425294371,1781657444000,-1602.07737551,0.00016438,2]
[425294384,1781657444000,-1602.07737553,0.00016438,2]
[425294358,1781657444000,-1602.07737551,0.00016438,2]
[425294357,1781657444000,-1602.07737551,0.00016438,2]
[425294361,1781657444000,-1602.07737551,0.00016438,2]
[425294362,1781657444000,-1602.07737551,0.00016438,2]
[425294359,1781657444000,-1602.07737551,0.00016438,2]
[425294363,1781657444000,-1602.07737551,0.00016438,2]
[425294365,1781657444000,-1602.07737551,0.00016438,2]
[425294367,1781657444000,-1602.07737551,0.00016438,2]
[425294370,1781657444000,-1602.07737551,0.00016438,2]
[425294360,1781657444000,-1602.07737551,0.00016438,2]
[425294369,1781657444000,-1602.07737551,0.00016438,2]
[425294366,1781657444000,-1602.07737551,0.00016438,2]
[425294364,1781657444000,-1602.07737551,0.00016438,2]
[425294368,1781657444000,-1602.07737551,0.00016438,2]
[425294382,1781657444000,-1602.07737551,0.00016438,2]
[425294372,1781657444000,-1602.07737551,0.00016438,2]
[425294374,1781657444000,-1602.07737551,0.00016438,2]
[425294373,1781657444000,-1602.07737551,0.00016438,2]
[425294376,1781657444000,-1602.07737551,0.00016438,2]
[425294378,1781657444000,-1602.07737551,0.00016438,2]
[425294377,1781657444000,-1602.07737551,0.00016438,2]
[425294380,1781657444000,-1602.07737551,0.00016438,2]
[425294375,1781657444000,-1602.07737551,0.00016438,2]
[425294379,1781657444000,-1602.07737551,0.00016438,2]
[425294381,1781657444000,-1602.07737551,0.00016438,2]
[425294392,1781657444000,-250.0,0.00017533,2]
[425294414,1781657444000,-172.55588832,0.00021815,2]
[425294387,1781657444000,-166.66,0.00016591,2]
[425294413,1781657444000,-172.0,0.00021,2]
[425294446,1781657444000,-151.0,0.00022459,2]
[425294444,1781657444000,-500.0,0.00022459,2]
[425294445,1781657444000,-151.0,0.00022459,2]
[425294447,1781657444000,-500.0,0.00022459,2]
[425294459,1781657444000,-500.0,0.00023614,2]
[425294449,1781657444000,-468.75,0.00022602,2]
[425294458,1781657444000,-6078.0,0.00023598,2]
[425294455,1781657444000,-784.0,0.00023,2]
[425294448,1781657444000,-500.0,0.00022459,2]
[425294451,1781657444000,-305.264,0.00022756,2]
[425294454,1781657444000,-518.0,0.00023,2]
[425294452,1781657444000,-383.0,0.00023,2]
[425294453,1781657444000,-563.0,0.00023,2]
[425294450,1781657444000,-181.0,0.00022751,2]
[425294457,1781657444000,-178.69,0.00023142,2]
[425294460,1781657444000,-500.0,0.00023614,2]
[425294464,1781657444000,-500.0,0.00023625,2]
[425294462,1781657444000,-500.0,0.00023625,2]
[425294468,1781657444000,-151.0,0.00023625,2]
[425294467,1781657444000,-500.0,0.00023625,2]
[425294466,1781657444000,-578.20924308,0.00023625,2]
[425294465,1781657444000,-500.0,0.00023625,2]
[425294461,1781657444000,-500.0,0.00023625,2]
[425294463,1781657444000,-151.0,0.00023625,2]
[425294412,1781657444000,-784.0,0.00021,2]
[425294443,1781657444000,-151.0,0.00022459,2]
[425294440,1781657444000,-500.0,0.00022459,2]
[425294456,1781657444000,-172.0,0.00023,2]
[425294442,1781657444000,-500.0,0.00022459,2]
[425294441,1781657444000,-151.0,0.00022459,2]
[425294417,1781657444000,-383.0,0.00022,2]
[425294416,1781657444000,-156.0,0.00022,2]
[425294418,1781657444000,-563.0,0.00022,2]
[425294420,1781657444000,-518.0,0.00022,2]
[425294419,1781657444000,-320.0,0.00022,2]
[425294422,1781657444000,-172.0,0.00022,2]
[425294423,1781657444000,-151.0,0.00022459,2]
[425294426,1781657444000,-500.0,0.00022459,2]
[425294424,1781657444000,-500.0,0.00022459,2]
[425294421,1781657444000,-784.0,0.00022,2]
[425294425,1781657444000,-151.0,0.00022459,2]
[425294427,1781657444000,-151.0,0.00022459,2]
[425294415,1781657444000,-5000.0,0.00021918,2]
[425294435,1781657444000,-151.0,0.00022459,2]
[425294431,1781657444000,-151.0,0.00022459,2]
[425294437,1781657444000,-151.0,0.00022459,2]
[425294430,1781657444000,-500.0,0.00022459,2]
[425294436,1781657444000,-500.0,0.00022459,2]
[425294433,1781657444000,-151.0,0.00022459,2]
[425294434,1781657444000,-500.0,0.00022459,2]
[425294428,1781657444000,-500.0,0.00022459,2]
[425294429,1781657444000,-151.0,0.00022459,2]
[425294432,1781657444000,-500.0,0.00022459,2]
[425294439,1781657444000,-151.0,0.00022459,2]
[425294438,1781657444000,-500.0,0.00022459,2]
[425294500,1781657445000,-2000.0,0.00024771,2]
[425294496,1781657445000,-186.61,0.00024658,2]
[425294508,1781657445000,-173.0,0.00025,2]
[425294505,1781657445000,-573.0,0.00025,2]
[425294501,1781657445000,-774.0,0.000249,2]
[425294507,1781657445000,-798.0,0.00025,2]
[425294503,1781657445000,-500.0,0.00024999,2]
[425294502,1781657445000,-500.0,0.00024999,2]
[425294504,1781657445000,-395.0,0.00025,2]
[425294499,1781657445000,-300.0,0.0002475,7]
[425294509,1781657445000,-208.52,0.00025,2]
[425294498,1781657445000,-9992.63270972,0.0002475,2]
[425294511,1781657445000,-500.0,0.00025452,2]
[425294512,1781657445000,-1532.04794651,0.00025648,2]
[425294517,1781657445000,-502.7933924,0.00025814,2]
[425294514,1781657445000,-1532.04794651,0.00025736,2]
[425294515,1781657445000,-1532.04794651,0.0002578,2]
[425294513,1781657445000,-1532.04794651,0.00025692,2]
[425294510,1781657445000,-200.0,0.00025218,2]
[425294516,1781657445000,-502.7933924,0.00025784,2]
[425294519,1781657445000,-239.0,0.00025837,2]
[425294520,1781657445000,-502.7933924,0.00025863,2]
[425294525,1781657445000,-502.7933924,0.0002595,2]
[425294524,1781657445000,-502.7933924,0.00025913,2]
[425294527,1781657445000,-1532.04794651,0.00026001,7]
[425294518,1781657445000,-1532.04794651,0.00025824,2]
[425294506,1781657445000,-532.0,0.00025,2]
[425294471,1781657445000,-500.0,0.00023625,2]
[425294489,1781657445000,-151.0,0.0002401,2]
[425294526,1781657445000,-1532.04794651,0.00025957,7]
[425294469,1781657445000,-500.0,0.00023625,2]
[425294470,1781657445000,-670.58624095,0.00023625,2]
[425294472,1781657445000,-500.0,0.00023625,2]
[425294474,1781657445000,-500.0,0.00023625,2]
[425294475,1781657445000,-500.0,0.00023625,2]
[425294476,1781657445000,-500.0,0.00023625,2]
[425294477,1781657445000,-500.0,0.00023625,2]
[425294473,1781657445000,-500.0,0.00023625,2]
[425294483,1781657445000,-151.0,0.00023955,2]
[425294479,1781657445000,-151.0,0.00023735,2]
[425294478,1781657445000,-151.0,0.0002368,2]
[425294497,1781657445000,-1000.0,0.00024658,2]
[425294482,1781657445000,-151.0,0.000239,2]
[425294481,1781657445000,-151.0,0.00023845,2]
[425294484,1781657445000,-383.0,0.00024,2]
[425294485,1781657445000,-563.0,0.00024,2]
[425294488,1781657445000,-172.0,0.00024,2]
[425294486,1781657445000,-518.0,0.00024,2]
[425294491,1781657445000,-151.0,0.0002412,2]
[425294490,1781657445000,-151.0,0.00024065,2]
[425294492,1781657445000,-151.0,0.00024175,2]
[425294494,1781657445000,-151.0,0.00024285,2]
[425294495,1781657445000,-172.55588832,0.00024553,2]
[425294493,1781657445000,-151.0,0.0002423,2]
[425294487,1781657445000,-784.0,0.00024,2]
[425294480,1781657445000,-151.0,0.0002379,2]
[425294523,1781657445000,-1532.04794651,0.00025913,2]
[425294521,1781657445000,-1532.04794651,0.00025868,2]
[425294583,1781657445000,-168.45793484,0.00027003,7]
[425294556,1781657445000,-9228.53165724,0.00026578,2]
[425294564,1781657445000,-1532.04794651,0.00026794,14]
[425294565,1781657445000,-862.6,0.00026813,2]
[425294559,1781657445000,-1532.04794651,0.00026618,14]
[425294560,1781657445000,-1532.04794651,0.00026662,14]
[425294562,1781657445000,-604.88979139,0.00026735,2]
[425294563,1781657445000,-1532.04794651,0.0002675,14]
[425294561,1781657445000,-1532.04794651,0.00026706,14]
[425294566,1781657445000,-1532.04794651,0.00026838,14]
[425294571,1781657445000,-156.88600634,0.00026998,7]
[425294569,1781657445000,-1532.04794651,0.00026926,14]
[425294575,1781657445000,-151.34664811,0.00026998,7]
[425294570,1781657445000,-1532.04794651,0.0002697,14]
[425294567,1781657445000,-543.0,0.00026882,5]
[425294572,1781657445000,-165.24672096,0.00026998,7]
[425294568,1781657445000,-1532.04794651,0.00026882,14]
[425294576,1781657445000,-206.39465883,0.00026998,7]
[425294574,1781657445000,-150.4063351,0.00026998,7]
[425294579,1781657445000,-151.82707156,0.00026998,7]
[425294580,1781657445000,-153.45678516,0.00026998,7]
[425294577,1781657445000,-155.72413942,0.00026998,7]
[425294581,1781657445000,-173.0,0.00027,7]
[425294522,1781657445000,-502.7933924,0.00025905,2]
[425294582,1781657445000,-176.16496366,0.00027003,7]
[425294584,1781657445000,-170.83372488,0.00027003,7]
[425294558,1781657445000,-6078.0,0.00026598,2]
[425294557,1781657445000,-531.96105448,0.0002658,2]
[425294573,1781657445000,-170.37101648,0.00026998,7]
[425294553,1781657445000,-1532.04794651,0.0002653,14]
[425294529,1781657445000,-502.7933924,0.00026019,2]
[425294555,1781657445000,-1532.04794651,0.00026574,14]
[425294530,1781657445000,-1532.04794651,0.00026045,7]
[425294532,1781657445000,-487.0,0.00026091,10]
[425294531,1781657445000,-1532.04794651,0.00026089,7]
[425294533,1781657445000,-502.7933924,0.00026108,2]
[425294534,1781657445000,-502.7933924,0.00026115,2]
[425294535,1781657445000,-1532.04794651,0.00026133,7]
[425294540,1781657445000,-1532.04794651,0.00026265,7]
[425294539,1781657445000,-1532.04794651,0.00026221,7]
[425294536,1781657445000,-502.7933924,0.00026162,2]
[425294537,1781657445000,-531.96105448,0.00026168,2]
[425294542,1781657445000,-1532.04794651,0.00026309,7]
[425294528,1781657445000,-502.7933924,0.00026014,2]
[425294541,1781657445000,-531.96105448,0.00026298,2]
[425294538,1781657445000,-1532.04794651,0.00026177,7]
[425294550,1781657445000,-531.96105448,0.00026485,2]
[425294552,1781657445000,-239.0,0.00026522,2]
[425294548,1781657445000,-1532.04794651,0.00026397,7]
[425294551,1781657445000,-1532.04794651,0.00026486,14]
[425294547,1781657445000,-695.39793187,0.00026364,2]
[425294549,1781657445000,-1532.04794651,0.00026441,7]
[425294545,1781657445000,-151.0,0.00026364,2]
[425294543,1781657445000,-1532.04794651,0.00026353,7]
[425294544,1781657445000,-531.96105448,0.0002636,2]
[425294554,1781657445000,-531.96105448,0.0002656,2]
[425294546,1781657445000,-599.60298507,0.00026364,2]
[425294619,1781657446000,-172.55588832,0.00027292,2]
[425294613,1781657446000,-1532.04794651,0.00027235,30]
[425294616,1781657446000,-250.0,0.00027288,9]
[425294614,1781657446000,-1839.90977,0.00027241,2]
[425294617,1781657446000,-250.0,0.00027288,9]
[425294621,1781657446000,-1532.04794651,0.00027323,30]
[425294618,1781657446000,-250.0,0.00027288,9]
[425294622,1781657446000,-500.0,0.00027356,7]
[425294623,1781657446000,-500.0,0.00027356,7]
[425294620,1781657446000,-3598.22703179,0.00027296,2]
[425294624,1781657446000,-600.0,0.00027356,7]
[425294630,1781657446000,-500.0,0.00027396,2]
[425294627,1781657446000,-16938.8134693,0.00027382,2]
[425294633,1781657446000,-500.0,0.00027397,2]
[425294628,1781657446000,-7801.5516681,0.00027382,2]
[425294631,1781657446000,-500.0,0.00027396,2]
[425294625,1781657446000,-1532.04794651,0.00027367,30]
[425294629,1781657446000,-21812.8931442,0.00027382,2]
[425294632,1781657446000,-299.76703463,0.00027397,2]
[425294634,1781657446000,-962.52,0.00027397,30]
[425294639,1781657446000,-1000.0,0.00027397,2]
[425294635,1781657446000,-1000.0,0.00027397,2]
[425294615,1781657446000,-1532.04794651,0.00027279,30]
[425294626,1781657446000,-3468.6376015,0.00027382,2]
[425294609,1781657446000,-150.0,0.00027123,2]
[425294645,1781657446000,-953.88602562,0.00027397,2]
[425294612,1781657446000,-1532.04794651,0.00027191,30]
[425294588,1781657446000,-169.38251959,0.00027003,7]
[425294586,1781657446000,-163.66199056,0.00027003,7]
[425294589,1781657446000,-181.25612066,0.00027003,7]
[425294585,1781657446000,-170.02422072,0.00027003,7]
[425294591,1781657446000,-162.83684118,0.00027003,7]
[425294590,1781657446000,-175.75705916,0.00027003,7]
[425294593,1781657446000,-165.45524804,0.00027003,7]
[425294592,1781657446000,-164.23784071,0.00027003,7]
[425294597,1781657446000,-195.40157659,0.00027003,7]
[425294595,1781657446000,-194.3354055,0.00027003,2]
[425294599,1781657446000,-1532.04794651,0.00027014,30]
[425294598,1781657446000,-163.90705884,0.00027003,7]
[425294596,1781657446000,-171.02027542,0.00027003,7]
[425294600,1781657446000,-1532.04794651,0.00027059,30]
[425294601,1781657446000,-150.0,0.00027099,7]
[425294603,1781657446000,-1532.04794651,0.00027103,30]
[425294602,1781657446000,-150.0,0.00027099,7]
[425294606,1781657446000,-500.0,0.00027123,2]
[425294608,1781657446000,-170.48121335,0.00027123,2]
[425294611,1781657446000,-1532.04794651,0.00027147,30]
[425294604,1781657446000,-500.0,0.00027123,2]
[425294605,1781657446000,-500.0,0.00027123,2]
[425294607,1781657446000,-500.0,0.00027123,2]
[425294610,1781657446000,-596.0,0.00027137,2]
[425294636,1781657446000,-1000.0,0.00027397,2]
[425294644,1781657446000,-1000.0,0.00027397,2]
[425294638,1781657446000,-1000.0,0.00027397,2]
[425294670,1781657446000,-1000.0,0.00027397,7]
[425294672,1781657446000,-1000.0,0.00027397,7]
[425294668,1781657446000,-1000.0,0.00027397,7]
[425294675,1781657446000,-1000.0,0.00027397,7]
[425294676,1781657446000,-1000.0,0.00027397,7]
[425294674,1781657446000,-1000.0,0.00027397,7]
[425294673,1781657446000,-1000.0,0.00027397,7]
[425294669,1781657446000,-1000.0,0.00027397,7]
[425294671,1781657446000,-1000.0,0.00027397,7]
[425294677,1781657446000,-1000.0,0.00027397,7]
[425294680,1781657446000,-1000.0,0.00027397,7]
[425294678,1781657446000,-1000.0,0.00027397,7]
[425294679,1781657446000,-1000.0,0.00027397,7]
[425294684,1781657446000,-1000.0,0.00027397,7]
[425294681,1781657446000,-1000.0,0.00027397,7]
[425294686,1781657446000,-1000.0,0.00027397,7]
[425294682,1781657446000,-1000.0,0.00027397,7]
[425294685,1781657446000,-1000.0,0.00027397,7]
[425294683,1781657446000,-1000.0,0.00027397,7]
[425294687,1781657446000,-1000.0,0.00027397,7]
[425294688,1781657446000,-1000.0,0.00027397,7]
[425294689,1781657446000,-1000.0,0.00027397,7]
[425294690,1781657446000,-1000.0,0.00027397,7]
[425294667,1781657446000,-1000.0,0.00027397,7]
[425294663,1781657446000,-1000.0,0.00027397,7]
[425294640,1781657446000,-1000.0,0.00027397,2]
[425294666,1781657446000,-1000.0,0.00027397,7]
[425294664,1781657446000,-1000.0,0.00027397,7]
[425294643,1781657446000,-1000.0,0.00027397,2]
[425294642,1781657446000,-1000.0,0.00027397,2]
[425294637,1781657446000,-1000.0,0.00027397,2]
[425294691,1781657446000,-1000.0,0.00027397,7]
[425294641,1781657446000,-1000.0,0.00027397,2]
[425294647,1781657446000,-1000.0,0.00027397,7]
[425294646,1781657446000,-1500.0,0.00027397,2]
[425294649,1781657446000,-1000.0,0.00027397,7]
[425294650,1781657446000,-1000.0,0.00027397,7]
[425294651,1781657446000,-1000.0,0.00027397,7]
[425294648,1781657446000,-1000.0,0.00027397,7]
[425294655,1781657446000,-1000.0,0.00027397,7]
[425294654,1781657446000,-1000.0,0.00027397,7]
[425294653,1781657446000,-1000.0,0.00027397,7]
[425294656,1781657446000,-1000.0,0.00027397,7]
[425294661,1781657446000,-1000.0,0.00027397,7]
[425294657,1781657446000,-1000.0,0.00027397,7]
[425294658,1781657446000,-1000.0,0.00027397,7]
[425294660,1781657446000,-1000.0,0.00027397,7]
[425294662,1781657446000,-1000.0,0.00027397,7]
[425294659,1781657446000,-1000.0,0.00027397,7]
[425294665,1781657446000,-1000.0,0.00027397,7]
[425294652,1781657446000,-1000.0,0.00027397,7]
[425294729,1781657447000,-1000.0,0.00027397,7]
[425294719,1781657447000,-1000.0,0.00027397,7]
[425294724,1781657447000,-1000.0,0.00027397,7]
[425294728,1781657447000,-1000.0,0.00027397,7]
[425294721,1781657447000,-1000.0,0.00027397,7]
[425294727,1781657447000,-1000.0,0.00027397,7]
[425294725,1781657447000,-1000.0,0.00027397,7]
[425294726,1781657447000,-1000.0,0.00027397,7]
[425294731,1781657447000,-1000.0,0.00027397,7]
[425294723,1781657447000,-1000.0,0.00027397,7]
[425294730,1781657447000,-1000.0,0.00027397,7]
[425294742,1781657447000,-1368.89276718,0.00027397,7]
[425294733,1781657447000,-1000.0,0.00027397,7]
[425294737,1781657447000,-1000.0,0.00027397,7]
[425294734,1781657447000,-1000.0,0.00027397,7]
[425294735,1781657447000,-1000.0,0.00027397,7]
[425294732,1781657447000,-1000.0,0.00027397,7]
[425294736,1781657447000,-1000.0,0.00027397,7]
[425294740,1781657447000,-1000.0,0.00027397,7]
[425294739,1781657447000,-1000.0,0.00027397,7]
[425294741,1781657447000,-1000.0,0.00027397,7]
[425294744,1781657447000,-300.0,0.00027397,2]
[425294722,1781657447000,-1000.0,0.00027397,7]
[425294738,1781657447000,-1000.0,0.00027397,7]
[425294720,1781657447000,-1000.0,0.00027397,7]
[425294706,1781657447000,-1000.0,0.00027397,7]
[425294712,1781657447000,-1000.0,0.00027397,7]
[425294693,1781657447000,-1000.0,0.00027397,7]
[425294745,1781657447000,-18390.75,0.00027397,10]
[425294695,1781657447000,-1000.0,0.00027397,7]
[425294692,1781657447000,-1000.0,0.00027397,7]
[425294696,1781657447000,-1000.0,0.00027397,7]
[425294698,1781657447000,-1000.0,0.00027397,7]
[425294697,1781657447000,-1000.0,0.00027397,7]
[425294700,1781657447000,-1000.0,0.00027397,7]
[425294702,1781657447000,-1000.0,0.00027397,7]
[425294703,1781657447000,-1000.0,0.00027397,7]
[425294699,1781657447000,-1000.0,0.00027397,7]
[425294716,1781657447000,-1000.0,0.00027397,7]
[425294701,1781657447000,-1000.0,0.00027397,7]
[425294705,1781657447000,-1000.0,0.00027397,7]
[425294707,1781657447000,-1000.0,0.00027397,7]
[425294718,1781657447000,-1000.0,0.00027397,7]
[425294710,1781657447000,-1000.0,0.00027397,7]
[425294708,1781657447000,-1000.0,0.00027397,7]
[425294711,1781657447000,-1000.0,0.00027397,7]
[425294709,1781657447000,-1000.0,0.00027397,7]
[425294713,1781657447000,-1000.0,0.00027397,7]
[425294717,1781657447000,-1000.0,0.00027397,7]
[425294715,1781657447000,-1000.0,0.00027397,7]
[425294714,1781657447000,-1000.0,0.00027397,7]
[425294704,1781657447000,-1000.0,0.00027397,7]
[425294694,1781657447000,-1000.0,0.00027397,7]
[425294743,1781657447000,-526.06952035,0.00027397,2]
[425294746,1781657447000,-15325.62,0.00027397,10]
[425294776,1781657447000,-3084.88079154,0.00027986,2]
[425294770,1781657447000,-1532.04794651,0.00027808,60]
[425294773,1781657447000,-1080.17,0.00027927,10]
[425294774,1781657447000,-333.61,0.00027978,8]
[425294779,1781657447000,-8763.40173482,0.00028,2]
[425294780,1781657447000,-643.0,0.00028,2]
[425294783,1781657447000,-5347.04,0.00028055,2]
[425294793,1781657447000,-330.49344192,0.00028278,7]
[425294782,1781657447000,-384.0,0.00028023,2]
[425294784,1781657447000,-724.53066983,0.00028067,2]
[425294791,1781657447000,-151.0,0.00028267,2]